[Event "Titled Tuesday Blitz October 25 Early 2022"]
[White "Csonka, Balazs"]
[Black "Firouzja, Alireza"]
[WhiteFideId "742910"]
[BlackFideId "12573981"]
[WhiteElo "2404"]
[BlackElo "2903"]
[Result "0-1"]
[Round "08"]
[TimeControl "180+1"]
[Date "2022.10.25"]
[WhiteClock "0:00:03"]
[BlackClock "0:02:50"]

1. d4 {[%clk 0:03:00]}  Nf6 {[%clk 0:02:58]} 2. c4 {[%clk 0:03:00]}  g6 {[%clk 0:02:58]} 3. Nc3 {[%clk 0:02:59]}  d6 {[%clk 0:02:59]} 4. e4 {[%clk 0:02:56]}  Bg7 {[%clk 0:03:00]} 5. h3 {[%clk 0:02:52]}  O-O {[%clk 0:03:00]} 6. Be3 {[%clk 0:02:52]}  e5 {[%clk 0:03:01]} 7. d5 {[%clk 0:02:52]}  Nbd7 {[%clk 0:03:02]} 8. g4 {[%clk 0:02:51]}  Nc5 {[%clk 0:03:03]} 9. f3 {[%clk 0:02:51]}  c6 {[%clk 0:03:03]} 10. Nge2 {[%clk 0:02:48]}  a5 {[%clk 0:03:04]} 11. Qd2 {[%clk 0:02:47]}  h5 {[%clk 0:03:04]} 12. O-O-O {[%clk 0:02:40]}  a4 {[%clk 0:03:05]} 13. dxc6 {[%clk 0:02:19]}  Ne6 {[%clk 0:03:04]} 14. Qxd6 {[%clk 0:02:06]}  Qa5 {[%clk 0:03:04]} 15. cxb7 {[%clk 0:01:41]}  Bxb7 {[%clk 0:03:05]} 16. Qb6 {[%clk 0:01:39]}  Qxb6 {[%clk 0:03:02]} 17. Bxb6 {[%clk 0:01:40]}  Rfc8 {[%clk 0:03:03]} 18. Nd5 {[%clk 0:01:27]}  Bxd5 {[%clk 0:02:58]} 19. exd5 {[%clk 0:01:28]}  Nc5 {[%clk 0:02:59]} 20. Nc3 {[%clk 0:01:20]}  e4 {[%clk 0:02:59]} 21. Bxc5 {[%clk 0:01:16]}  Rxc5 {[%clk 0:02:59]} 22. Nxe4 {[%clk 0:01:13]}  Nxe4 {[%clk 0:03:00]} 23. fxe4 {[%clk 0:01:14]}  Rb8 {[%clk 0:03:00]} 24. Rh2 {[%clk 0:01:10]}  Be5 {[%clk 0:03:00]} 25. Rc2 {[%clk 0:01:06]}  hxg4 {[%clk 0:02:56]} 26. hxg4 {[%clk 0:01:06]}  Bd6 {[%clk 0:02:57]} 27. Bd3 {[%clk 0:01:03]}  Kg7 {[%clk 0:02:57]} 28. Rc3 {[%clk 0:00:45]}  Be5 {[%clk 0:02:57]} 29. Kc2 {[%clk 0:00:45]}  Kh6 {[%clk 0:02:53]} 30. Rb1 {[%clk 0:00:39]}  Kg5 {[%clk 0:02:51]} 31. b4 {[%clk 0:00:39]}  axb3+ {[%clk 0:02:51]} 32. axb3 {[%clk 0:00:36]}  Ra5 {[%clk 0:02:50]} 33. b4 {[%clk 0:00:31]}  Ra2+ {[%clk 0:02:50]} 34. Kb3 {[%clk 0:00:30]}  Rba8 {[%clk 0:02:51]} 35. b5 {[%clk 0:00:13]}  R8a3+ {[%clk 0:02:49]} 36. Kb4 {[%clk 0:00:13]}  Rxc3 {[%clk 0:02:50]} 37. Bf1 {[%clk 0:00:11]}  Ra8 {[%clk 0:02:49]} 38. b6 {[%clk 0:00:11]}  Rc8 {[%clk 0:02:49]} 39. Kb5 {[%clk 0:00:11]}  Ra3 {[%clk 0:02:46]} 40. c5 {[%clk 0:00:08]}  Rb8 {[%clk 0:02:44]} 41. c6 {[%clk 0:00:07]}  Bc7 {[%clk 0:02:45]} 42. b7 {[%clk 0:00:02]}  Kf6 {[%clk 0:02:44]} 43. Rd1 {[%clk 0:00:02]}  Ke7 {[%clk 0:02:44]} 44. Bc4 {[%clk 0:00:03]}  Re3 {[%clk 0:02:40]} 45. Rf1 {[%clk 0:00:02]}  Rxe4 {[%clk 0:02:39]} 46. d6+ {[%clk 0:00:03]}  Kxd6 {[%clk 0:02:40]} 47. Rxf7 {[%clk 0:00:03]}  Re5+ {[%clk 0:02:41]} 48. Ka4 {[%clk 0:00:02]}  Kxc6 {[%clk 0:02:41]} 49. Rf6+ {[%clk 0:00:02]}  Kxb7 {[%clk 0:02:41]} 50. Rxg6 {[%clk 0:00:03]}  Ra8+ {[%clk 0:02:42]} 51. Kb3 {[%clk 0:00:03]}  Rd8 {[%clk 0:02:42]} 52. Kc3 {[%clk 0:00:02]}  Rd6 {[%clk 0:02:42]} 53. Rg7 {[%clk 0:00:02]}  Kb6 {[%clk 0:02:43]} 54. g5 {[%clk 0:00:02]}  Bd8 {[%clk 0:02:44]} 55. g6 {[%clk 0:00:03]}  Bf6 {[%clk 0:02:44]} 56. Rf7 {[%clk 0:00:03]}  Re7+ {[%clk 0:02:45]} 57. Kb3 {[%clk 0:00:02]}  Rxf7 {[%clk 0:02:46]} 58. Bxf7 {[%clk 0:00:02]}  Bg7 {[%clk 0:02:47]} 59. Kc4 {[%clk 0:00:02]}  Rd4+ {[%clk 0:02:46]} 60. Kb3 {[%clk 0:00:02]}  Kc5 {[%clk 0:02:47]} 61. Kc2 {[%clk 0:00:02]}  Kb4 {[%clk 0:02:48]} 62. Be8 {[%clk 0:00:02]}  Bh6 {[%clk 0:02:49]} 63. Bf7 {[%clk 0:00:03]}  Rd2+ {[%clk 0:02:49]} 64. Kb1 {[%clk 0:00:03]}  Kc3 {[%clk 0:02:50]} 0-1


[Site "https://www.chess.com"]

[Event "Titled Tuesday Blitz October 25 Early 2022"]
[White "Deac, Bogdan-Daniel"]
[Black "Zou, Chen"]
[WhiteFideId "1226380"]
[BlackFideId "8610959"]
[WhiteElo "2648"]
[BlackElo "2325"]
[Result "1-0"]
[Round "08"]
[TimeControl "180+1"]
[Date "2022.10.25"]
[WhiteClock "0:00:05"]
[BlackClock "0:00:54"]

1. Nf3 {[%clk 0:02:49]}  Nf6 {[%clk 0:02:59]} 2. c4 {[%clk 0:02:48]}  e6 {[%clk 0:02:59]} 3. g3 {[%clk 0:02:49]}  d5 {[%clk 0:02:59]} 4. Bg2 {[%clk 0:02:49]}  Be7 {[%clk 0:02:58]} 5. d4 {[%clk 0:02:50]}  O-O {[%clk 0:02:57]} 6. Qd3 {[%clk 0:02:50]}  dxc4 {[%clk 0:02:51]} 7. Qxc4 {[%clk 0:02:50]}  c6 {[%clk 0:02:52]} 8. Bf4 {[%clk 0:02:40]}  Nbd7 {[%clk 0:02:28]} 9. O-O {[%clk 0:02:37]}  a6 {[%clk 0:02:25]} 10. Rd1 {[%clk 0:02:36]}  Nd5 {[%clk 0:02:21]} 11. Bd2 {[%clk 0:02:30]}  N7b6 {[%clk 0:02:02]} 12. Qc2 {[%clk 0:02:22]}  Bd7 {[%clk 0:02:02]} 13. e4 {[%clk 0:02:06]}  Nb4 {[%clk 0:02:02]} 14. Qb3 {[%clk 0:01:46]}  a5 {[%clk 0:02:01]} 15. a3 {[%clk 0:01:39]}  a4 {[%clk 0:01:59]} 16. Qc3 {[%clk 0:01:37]}  Na6 {[%clk 0:01:58]} 17. Be3 {[%clk 0:01:27]}  Rc8 {[%clk 0:01:42]} 18. Qc2 {[%clk 0:00:58]}  c5 {[%clk 0:01:33]} 19. d5 {[%clk 0:00:55]}  exd5 {[%clk 0:01:32]} 20. exd5 {[%clk 0:00:56]}  Bd6 {[%clk 0:01:33]} 21. Nc3 {[%clk 0:00:47]}  Re8 {[%clk 0:01:25]} 22. Ng5 {[%clk 0:00:33]}  g6 {[%clk 0:01:25]} 23. Nge4 {[%clk 0:00:31]}  Be5 {[%clk 0:01:23]} 24. d6 {[%clk 0:00:26]}  Nc4 {[%clk 0:01:22]} 25. Bg5 {[%clk 0:00:16]}  Qa5 {[%clk 0:01:13]} 26. Nd5 {[%clk 0:00:13]}  Nxb2 {[%clk 0:01:10]} 27. Nef6+ {[%clk 0:00:08]}  Kg7 {[%clk 0:01:09]} 28. Nxd7 {[%clk 0:00:08]}  Nxd1 {[%clk 0:01:09]} 29. Rxd1 {[%clk 0:00:07]}  Bxd6 {[%clk 0:01:04]} 30. Bf6+ {[%clk 0:00:06]}  Kg8 {[%clk 0:01:04]} 31. Bc3 {[%clk 0:00:06]}  Nb4 {[%clk 0:00:59]} 32. axb4 {[%clk 0:00:05]}  cxb4 {[%clk 0:01:00]} 33. N5f6+ {[%clk 0:00:05]}  Kh8 {[%clk 0:00:59]} 34. Nxe8+ {[%clk 0:00:05]}  Rxc3 {[%clk 0:00:59]} 35. Qd2 {[%clk 0:00:05]}  Be7 {[%clk 0:00:57]} 36. Qd4+ {[%clk 0:00:05]}  f6 {[%clk 0:00:57]} 37. Nexf6 {[%clk 0:00:05]}  Kg7 {[%clk 0:00:56]} 38. Nd5+ {[%clk 0:00:05]}  Kf7 {[%clk 0:00:55]} 39. Nxe7 {[%clk 0:00:05]}  b3 {[%clk 0:00:54]} 40. Qf6+ {[%clk 0:00:05]} 1-0


[Site "https://www.chess.com"]

[Event "Titled Tuesday Blitz October 25 Early 2022"]
[White "Gharibyan, Mamikon"]
[Black "Matlakov, Maxim"]
[WhiteFideId "13308300"]
[BlackFideId "4168003"]
[WhiteElo "2378"]
[BlackElo "2669"]
[Result "1-0"]
[Round "08"]
[TimeControl "180+1"]
[Date "2022.10.25"]
[WhiteClock "0:00:05"]
[BlackClock "0:00:02"]

1. d4 {[%clk 0:03:00]}  d5 {[%clk 0:02:59]} 2. c4 {[%clk 0:02:58]}  c6 {[%clk 0:02:59]} 3. Nf3 {[%clk 0:02:57]}  Nf6 {[%clk 0:02:59]} 4. Qc2 {[%clk 0:02:55]}  g6 {[%clk 0:02:59]} 5. e3 {[%clk 0:02:54]}  Bg7 {[%clk 0:02:55]} 6. Nc3 {[%clk 0:02:52]}  O-O {[%clk 0:02:55]} 7. h3 {[%clk 0:02:41]}  c5 {[%clk 0:02:42]} 8. dxc5 {[%clk 0:02:30]}  Na6 {[%clk 0:02:42]} 9. Be2 {[%clk 0:01:57]}  Nxc5 {[%clk 0:02:38]} 10. O-O {[%clk 0:01:54]}  Bf5 {[%clk 0:02:36]} 11. Qd1 {[%clk 0:01:50]}  dxc4 {[%clk 0:02:34]} 12. Bxc4 {[%clk 0:01:51]}  Rc8 {[%clk 0:02:33]} 13. Nd4 {[%clk 0:01:44]}  Bd7 {[%clk 0:02:27]} 14. Qe2 {[%clk 0:01:42]}  a6 {[%clk 0:02:24]} 15. a4 {[%clk 0:01:40]}  Nfe4 {[%clk 0:01:41]} 16. Nxe4 {[%clk 0:01:34]}  Nxe4 {[%clk 0:01:42]} 17. Rd1 {[%clk 0:01:27]}  Qc7 {[%clk 0:01:38]} 18. Bd5 {[%clk 0:01:21]}  Nc5 {[%clk 0:01:29]} 19. a5 {[%clk 0:01:09]}  e6 {[%clk 0:01:24]} 20. Bc4 {[%clk 0:00:56]}  e5 {[%clk 0:01:05]} 21. Nf3 {[%clk 0:00:52]}  Be6 {[%clk 0:00:47]} 22. Bd2 {[%clk 0:00:42]}  e4 {[%clk 0:00:34]} 23. Ne1 {[%clk 0:00:25]}  Bxb2 {[%clk 0:00:20]} 24. Rab1 {[%clk 0:00:24]}  Bg7 {[%clk 0:00:19]} 25. Bb4 {[%clk 0:00:23]}  Rfe8 {[%clk 0:00:17]} 26. Bxc5 {[%clk 0:00:21]}  Qxc5 {[%clk 0:00:16]} 27. Bxe6 {[%clk 0:00:21]}  Rxe6 {[%clk 0:00:17]} 28. Rxb7 {[%clk 0:00:21]}  Qxa5 {[%clk 0:00:17]} 29. h4 {[%clk 0:00:22]}  h5 {[%clk 0:00:17]} 30. g3 {[%clk 0:00:22]}  Rec6 {[%clk 0:00:12]} 31. Ng2 {[%clk 0:00:21]}  Rc1 {[%clk 0:00:11]} 32. Qf1 {[%clk 0:00:21]}  Rxd1 {[%clk 0:00:10]} 33. Qxd1 {[%clk 0:00:21]}  Qa3 {[%clk 0:00:10]} 34. Qd7 {[%clk 0:00:19]}  Rc1+ {[%clk 0:00:07]} 35. Kh2 {[%clk 0:00:19]}  Qa2 {[%clk 0:00:07]} 36. Qe8+ {[%clk 0:00:13]}  Bf8 {[%clk 0:00:06]} 37. Rb8 {[%clk 0:00:07]}  Qa3 {[%clk 0:00:06]} 38. Nf4 {[%clk 0:00:07]}  Rc2 {[%clk 0:00:06]} 39. Kg2 {[%clk 0:00:06]}  Kg7 {[%clk 0:00:06]} 40. Qxe4 {[%clk 0:00:05]}  Rc7 {[%clk 0:00:02]} 41. Qe5+ {[%clk 0:00:05]}  Kh7 {[%clk 0:00:02]} 42. Qxc7 {[%clk 0:00:05]} 1-0


[Site "https://www.chess.com"]

[Event "Titled Tuesday Blitz October 25 Early 2022"]
[White "Indjic, Aleksandar"]
[Black "Andreikin, Dmitry"]
[WhiteFideId "911925"]
[BlackFideId "4158814"]
[WhiteElo "2592"]
[BlackElo "2736"]
[Result "0-1"]
[Round "08"]
[TimeControl "180+1"]
[Date "2022.10.25"]
[WhiteClock "0:00:03"]
[BlackClock "0:00:14"]

1. d4 {[%clk 0:03:00]}  Nf6 {[%clk 0:02:59]} 2. c4 {[%clk 0:02:59]}  e6 {[%clk 0:03:00]} 3. Nc3 {[%clk 0:02:59]}  Bb4 {[%clk 0:02:59]} 4. Qc2 {[%clk 0:02:59]}  O-O {[%clk 0:02:59]} 5. Nf3 {[%clk 0:02:58]}  c5 {[%clk 0:02:57]} 6. dxc5 {[%clk 0:02:58]}  Na6 {[%clk 0:02:57]} 7. g3 {[%clk 0:02:58]}  Nxc5 {[%clk 0:02:57]} 8. Bg2 {[%clk 0:02:59]}  b6 {[%clk 0:02:50]} 9. O-O {[%clk 0:02:59]}  Bb7 {[%clk 0:02:50]} 10. Nb5 {[%clk 0:02:58]}  Be4 {[%clk 0:02:51]} 11. Qd1 {[%clk 0:02:57]}  Nb7 {[%clk 0:02:52]} 12. a3 {[%clk 0:02:56]}  Be7 {[%clk 0:02:50]} 13. Nc3 {[%clk 0:02:56]}  Bc6 {[%clk 0:02:49]} 14. Bf4 {[%clk 0:02:23]}  Rc8 {[%clk 0:02:48]} 15. Nb5 {[%clk 0:02:21]}  Bxb5 {[%clk 0:02:29]} 16. cxb5 {[%clk 0:02:22]}  Nd5 {[%clk 0:02:29]} 17. Bd2 {[%clk 0:02:18]}  Nc5 {[%clk 0:02:25]} 18. Nd4 {[%clk 0:02:14]}  Bf6 {[%clk 0:02:25]} 19. e3 {[%clk 0:02:12]}  Ne7 {[%clk 0:02:13]} 20. b4 {[%clk 0:01:51]}  Nd3 {[%clk 0:02:00]} 21. Qb3 {[%clk 0:01:21]}  Ne5 {[%clk 0:01:57]} 22. Rac1 {[%clk 0:01:01]}  d5 {[%clk 0:01:57]} 23. Rfd1 {[%clk 0:00:54]}  Qd7 {[%clk 0:01:44]} 24. Bf1 {[%clk 0:00:51]}  Rxc1 {[%clk 0:01:36]} 25. Rxc1 {[%clk 0:00:52]}  Rc8 {[%clk 0:01:36]} 26. Rc2 {[%clk 0:00:52]}  h5 {[%clk 0:01:35]} 27. h3 {[%clk 0:00:52]}  g6 {[%clk 0:01:26]} 28. f4 {[%clk 0:00:50]}  Nc4 {[%clk 0:01:15]} 29. Bxc4 {[%clk 0:00:22]}  dxc4 {[%clk 0:01:14]} 30. Rxc4 {[%clk 0:00:22]}  Bxd4 {[%clk 0:01:15]} 31. Rxd4 {[%clk 0:00:20]}  Qxb5 {[%clk 0:01:15]} 32. Qd3 {[%clk 0:00:19]}  Qa4 {[%clk 0:01:15]} 33. Rd8+ {[%clk 0:00:17]}  Kh7 {[%clk 0:01:12]} 34. Rxc8 {[%clk 0:00:17]}  Nxc8 {[%clk 0:01:12]} 35. Bc3 {[%clk 0:00:17]}  Ne7 {[%clk 0:00:34]} 36. Qd4 {[%clk 0:00:16]}  e5 {[%clk 0:00:34]} 37. Qxe5 {[%clk 0:00:15]}  Qd1+ {[%clk 0:00:34]} 38. Kf2 {[%clk 0:00:16]}  Qc2+ {[%clk 0:00:35]} 39. Kf3 {[%clk 0:00:15]}  Qd1+ {[%clk 0:00:35]} 40. Kf2 {[%clk 0:00:16]}  Qc2+ {[%clk 0:00:35]} 41. Ke1 {[%clk 0:00:16]}  Qc1+ {[%clk 0:00:33]} 42. Ke2 {[%clk 0:00:16]}  Qc2+ {[%clk 0:00:33]} 43. Bd2 {[%clk 0:00:08]}  Nf5 {[%clk 0:00:32]} 44. Qd5 {[%clk 0:00:09]}  Kg8 {[%clk 0:00:20]} 45. g4 {[%clk 0:00:09]}  Ng3+ {[%clk 0:00:20]} 46. Kf3 {[%clk 0:00:09]}  h4 {[%clk 0:00:20]} 47. Qd8+ {[%clk 0:00:07]}  Kg7 {[%clk 0:00:20]} 48. Qd4+ {[%clk 0:00:07]}  Kh7 {[%clk 0:00:19]} 49. f5 {[%clk 0:00:07]}  g5 {[%clk 0:00:15]} 50. Qd5 {[%clk 0:00:05]}  Qd1+ {[%clk 0:00:13]} 51. Kg2 {[%clk 0:00:03]}  Qh1+ {[%clk 0:00:13]} 52. Kf2 {[%clk 0:00:03]}  Qf1# {[%clk 0:00:14]} 0-1


[Site "https://www.chess.com"]

[Event "Titled Tuesday Blitz October 25 Early 2022"]
[White "Jobava, Baadur"]
[Black "Pultinevicius, Paulius"]
[WhiteFideId "13601520"]
[BlackFideId "12809390"]
[WhiteElo "2582"]
[BlackElo "2500"]
[Result "0-1"]
[Round "08"]
[TimeControl "180+1"]
[Date "2022.10.25"]
[WhiteClock "0:00:05"]
[BlackClock "0:00:04"]

1. b3 {[%clk 0:03:00]}  d5 {[%clk 0:02:56]} 2. Bb2 {[%clk 0:03:01]}  Bf5 {[%clk 0:02:56]} 3. d3 {[%clk 0:03:02]}  e6 {[%clk 0:02:55]} 4. Nd2 {[%clk 0:03:03]}  Nf6 {[%clk 0:02:53]} 5. g3 {[%clk 0:03:03]}  Be7 {[%clk 0:02:50]} 6. Bg2 {[%clk 0:03:04]}  O-O {[%clk 0:02:51]} 7. e4 {[%clk 0:03:04]}  Bg6 {[%clk 0:02:50]} 8. Nh3 {[%clk 0:03:04]}  Bh5 {[%clk 0:02:24]} 9. f3 {[%clk 0:03:04]}  dxe4 {[%clk 0:02:23]} 10. dxe4 {[%clk 0:03:04]}  Bb4 {[%clk 0:02:13]} 11. a3 {[%clk 0:02:57]}  Ba5 {[%clk 0:02:03]} 12. b4 {[%clk 0:02:57]}  Bb6 {[%clk 0:02:03]} 13. Nf4 {[%clk 0:02:57]}  Bg6 {[%clk 0:01:55]} 14. Nc4 {[%clk 0:02:53]}  Nc6 {[%clk 0:01:22]} 15. Nxb6 {[%clk 0:02:50]}  axb6 {[%clk 0:01:21]} 16. Qxd8 {[%clk 0:02:37]}  Rfxd8 {[%clk 0:01:22]} 17. Rd1 {[%clk 0:02:34]}  Rxd1+ {[%clk 0:01:09]} 18. Kxd1 {[%clk 0:02:34]}  e5 {[%clk 0:01:00]} 19. Nxg6 {[%clk 0:02:26]}  hxg6 {[%clk 0:01:01]} 20. Kc1 {[%clk 0:02:24]}  Ne8 {[%clk 0:00:57]} 21. Rd1 {[%clk 0:02:23]}  Nd6 {[%clk 0:00:58]} 22. Bf1 {[%clk 0:02:23]}  b5 {[%clk 0:00:57]} 23. Rd5 {[%clk 0:02:21]}  f6 {[%clk 0:00:56]} 24. Rc5 {[%clk 0:01:59]}  Kf7 {[%clk 0:00:32]} 25. Bxb5 {[%clk 0:01:55]}  Nxb5 {[%clk 0:00:32]} 26. Rxb5 {[%clk 0:01:56]}  b6 {[%clk 0:00:32]} 27. Rd5 {[%clk 0:01:55]}  Ke6 {[%clk 0:00:33]} 28. Rd2 {[%clk 0:01:49]}  g5 {[%clk 0:00:32]} 29. Kd1 {[%clk 0:01:27]}  Ne7 {[%clk 0:00:32]} 30. Ke1 {[%clk 0:01:20]}  b5 {[%clk 0:00:32]} 31. Kf2 {[%clk 0:01:18]}  Nc8 {[%clk 0:00:32]} 32. Rd8 {[%clk 0:01:14]}  Nb6 {[%clk 0:00:31]} 33. Rxa8 {[%clk 0:01:15]}  Nxa8 {[%clk 0:00:32]} 34. h4 {[%clk 0:01:09]}  gxh4 {[%clk 0:00:31]} 35. gxh4 {[%clk 0:01:10]}  g6 {[%clk 0:00:31]} 36. Ke2 {[%clk 0:01:01]}  Nb6 {[%clk 0:00:31]} 37. Kd3 {[%clk 0:01:01]}  c6 {[%clk 0:00:22]} 38. Bc1 {[%clk 0:01:00]}  Kd6 {[%clk 0:00:20]} 39. Kc3 {[%clk 0:00:49]}  Na4+ {[%clk 0:00:18]} 40. Kb3 {[%clk 0:00:48]}  Nb6 {[%clk 0:00:18]} 41. Bh6 {[%clk 0:00:45]}  Ke6 {[%clk 0:00:18]} 42. Kc3 {[%clk 0:00:39]}  Na4+ {[%clk 0:00:17]} 43. Kd2 {[%clk 0:00:38]}  Nb6 {[%clk 0:00:18]} 44. Kd3 {[%clk 0:00:38]}  Kd7 {[%clk 0:00:16]} 45. Be3 {[%clk 0:00:35]}  Nc4 {[%clk 0:00:16]} 46. Bc1 {[%clk 0:00:36]}  Nb6 {[%clk 0:00:16]} 47. f4 {[%clk 0:00:35]}  exf4 {[%clk 0:00:14]} 48. Bxf4 {[%clk 0:00:34]}  Nc4 {[%clk 0:00:14]} 49. Bc1 {[%clk 0:00:33]}  Ne5+ {[%clk 0:00:14]} 50. Ke2 {[%clk 0:00:34]}  Ke6 {[%clk 0:00:13]} 51. Ke3 {[%clk 0:00:28]}  Kd7 {[%clk 0:00:10]} 52. Kf2 {[%clk 0:00:18]}  Ke6 {[%clk 0:00:10]} 53. Kg3 {[%clk 0:00:18]}  Nc4 {[%clk 0:00:09]} 54. Kf4 {[%clk 0:00:17]}  Ne5 {[%clk 0:00:09]} 55. Ke3 {[%clk 0:00:12]}  Kd7 {[%clk 0:00:09]} 56. Ke2 {[%clk 0:00:12]}  Ke6 {[%clk 0:00:09]} 57. Kf2 {[%clk 0:00:08]}  Nc4 {[%clk 0:00:07]} 58. Kf3 {[%clk 0:00:07]}  Ke5 {[%clk 0:00:06]} 59. Be3 {[%clk 0:00:02]}  Nxa3 {[%clk 0:00:04]} 60. c3 {[%clk 0:00:02]}  Nc4 {[%clk 0:00:05]} 61. Bd4+ {[%clk 0:00:02]}  Ke6 {[%clk 0:00:05]} 62. Kf4 {[%clk 0:00:03]}  Nd6 {[%clk 0:00:02]} 63. e5 {[%clk 0:00:03]}  fxe5+ {[%clk 0:00:03]} 64. Bxe5 {[%clk 0:00:04]}  Nf5 {[%clk 0:00:04]} 65. Bd4 {[%clk 0:00:03]}  Nxh4 {[%clk 0:00:04]} 66. Ke4 {[%clk 0:00:03]}  Nf5 {[%clk 0:00:04]} 67. Bf2 {[%clk 0:00:03]}  g5 {[%clk 0:00:03]} 68. Be1 {[%clk 0:00:04]}  g4 {[%clk 0:00:03]} 69. Kf4 {[%clk 0:00:04]}  g3 {[%clk 0:00:04]} 70. Kf3 {[%clk 0:00:05]}  Kd5 {[%clk 0:00:05]} 71. Bd2 {[%clk 0:00:04]}  Kc4 {[%clk 0:00:05]} 72. Be1 {[%clk 0:00:04]}  Kd3 {[%clk 0:00:05]} 73. Kf4 {[%clk 0:00:04]}  g2 {[%clk 0:00:04]} 74. Bf2 {[%clk 0:00:04]}  Nd6 {[%clk 0:00:05]} 75. Kf3 {[%clk 0:00:04]}  Kxc3 {[%clk 0:00:04]} 76. Bc5 {[%clk 0:00:03]}  g1=Q {[%clk 0:00:04]} 77. Bxg1 {[%clk 0:00:03]}  Kxb4 {[%clk 0:00:04]} 78. Ke3 {[%clk 0:00:04]}  Kc3 {[%clk 0:00:05]} 79. Bh2 {[%clk 0:00:03]}  Nc4+ {[%clk 0:00:05]} 80. Ke4 {[%clk 0:00:04]}  b4 {[%clk 0:00:05]} 81. Bg3 {[%clk 0:00:02]}  b3 {[%clk 0:00:05]} 82. Bh4 {[%clk 0:00:03]}  b2 {[%clk 0:00:04]} 83. Bf6+ {[%clk 0:00:03]}  Kb3 {[%clk 0:00:05]} 84. Bxb2 {[%clk 0:00:04]}  Nxb2 {[%clk 0:00:04]} 85. Kd4 {[%clk 0:00:05]}  Na4 {[%clk 0:00:04]} 0-1


[Site "https://www.chess.com"]

[Event "Titled Tuesday Blitz October 25 Early 2022"]
[White "Keymer, Vincent"]
[Black "Gokerkan, Cem Kaan"]
[WhiteFideId "12940690"]
[BlackFideId "6336760"]
[WhiteElo "2600"]
[BlackElo "2365"]
[Result "0-1"]
[Round "08"]
[TimeControl "180+1"]
[Date "2022.10.25"]
[WhiteClock "0:00:02"]
[BlackClock "0:00:33"]

1. Nf3 {[%clk 0:03:00]}  g6 {[%clk 0:02:56]} 2. d4 {[%clk 0:03:00]}  Bg7 {[%clk 0:02:56]} 3. c4 {[%clk 0:03:01]}  Nf6 {[%clk 0:02:57]} 4. g3 {[%clk 0:03:00]}  O-O {[%clk 0:02:56]} 5. Bg2 {[%clk 0:03:00]}  c6 {[%clk 0:02:56]} 6. O-O {[%clk 0:03:00]}  d5 {[%clk 0:02:57]} 7. a4 {[%clk 0:03:01]}  dxc4 {[%clk 0:02:56]} 8. Na3 {[%clk 0:02:54]}  Be6 {[%clk 0:02:54]} 9. Ng5 {[%clk 0:02:53]}  Bd5 {[%clk 0:02:52]} 10. e4 {[%clk 0:02:53]}  h6 {[%clk 0:02:53]} 11. exd5 {[%clk 0:02:53]}  hxg5 {[%clk 0:02:54]} 12. dxc6 {[%clk 0:02:53]}  Nxc6 {[%clk 0:02:54]} 13. d5 {[%clk 0:02:53]}  Nb4 {[%clk 0:02:47]} 14. Bxg5 {[%clk 0:02:53]}  Nbxd5 {[%clk 0:02:16]} 15. Nxc4 {[%clk 0:02:50]}  Rc8 {[%clk 0:02:17]} 16. Qb3 {[%clk 0:02:43]}  Qd7 {[%clk 0:02:00]} 17. Rad1 {[%clk 0:02:26]}  Qf5 {[%clk 0:02:00]} 18. Bxf6 {[%clk 0:02:26]}  Nxf6 {[%clk 0:02:01]} 19. Ne3 {[%clk 0:02:26]}  Qa5 {[%clk 0:01:32]} 20. Qxb7 {[%clk 0:02:21]}  e6 {[%clk 0:01:32]} 21. Qb5 {[%clk 0:01:57]}  Qxb5 {[%clk 0:01:14]} 22. axb5 {[%clk 0:01:58]}  Rc5 {[%clk 0:01:15]} 23. Bc6 {[%clk 0:01:53]}  a6 {[%clk 0:01:06]} 24. b4 {[%clk 0:01:49]}  Rc3 {[%clk 0:01:06]} 25. Rc1 {[%clk 0:01:24]}  Rxc1 {[%clk 0:01:05]} 26. Rxc1 {[%clk 0:01:25]}  axb5 {[%clk 0:01:06]} 27. Rc5 {[%clk 0:01:25]}  Rb8 {[%clk 0:00:49]} 28. Rc2 {[%clk 0:00:27]}  Bf8 {[%clk 0:00:49]} 29. Rb2 {[%clk 0:00:27]}  Rb6 {[%clk 0:00:47]} 30. Bf3 {[%clk 0:00:26]}  Rd6 {[%clk 0:00:43]} 31. Be2 {[%clk 0:00:25]}  Rd4 {[%clk 0:00:43]} 32. Nc2 {[%clk 0:00:20]}  Rd2 {[%clk 0:00:43]} 33. Bxb5 {[%clk 0:00:20]}  Nd5 {[%clk 0:00:40]} 34. Ba4 {[%clk 0:00:08]}  Bg7 {[%clk 0:00:36]} 35. Ra2 {[%clk 0:00:02]}  Nc3 {[%clk 0:00:36]} 36. b5 {[%clk 0:00:01]}  Nxa2 {[%clk 0:00:35]} 37. b6 {[%clk 0:00:02]}  Be5 {[%clk 0:00:33]} 0-1


[Site "https://www.chess.com"]